{"text_format":"1","workbook":"xlsx","n_sheets":4,"sheets":["Quiz","Nomenclature","Clé","Feuil1"],"not_rendered":{"charts":0,"images":144,"macros":1,"external_links":0,"defined_names":2,"comments":0,"pivot_tables":0},"unopened":[],"bounds":{"document_bytes":16777216,"sheet_cells":100000,"rows_first":2000,"rows_last":500,"rows_between":2000,"halvings":0,"cell_chars":16384,"cell_head_chars":4096},"cells_cut":0,"cells_raw":0,"read":"whole","date_system":"1900"}

{"sheet":"Quiz","index":0,"n_rows":112,"n_cols":21,"rows_kept":112,"cut":false,"hidden":false,"merged":[[7,5,8,5],[7,2,8,2],[4,7,5,7],[0,8,5,8],[2,9,5,9],[8,8,22,8],[6,8,7,8],[6,9,8,9],[6,7,8,7]]}
[null,null,null,null,null,null,"zoom",105,{"$f":"IF(N18>50,REPT(\"n\",50),REPT(\"n\",N18))","v":""},null,null,"Tirages",45]
[null,null,null,null,null,null,null,null,null,null,null,"Menu 1 / 2",0,0,"O+O",{"$f":"AND(M2>0,N2>0)","v":false}]
[null,null,{"$f":"HLOOKUP($M$1,Feuil1!$B$4:$AV$7,2)","v":"   "},{"$f":"HLOOKUP($M$1,Feuil1!$B$4:$AV$7,3)","v":"D E N D R O L O G I E"},null,{"$f":"HLOOKUP($M$1,Feuil1!$B$4:$AV$7,4)","v":"   "},null,null,null,{"$f":"REPT(\"n\",M17)","v":""},null,"Total /corrigé",{"$f":"SUM(M2:N2)","v":0},{"$f":"IF(M2=0,N2+17,M2)","v":17},"juste = 1",{"$f":"IF(M1=N3,1,\"0\")","v":"0"}]
[null,null,null,null,null,null,null,null,null,null,null,"Nb Plante",40,null,"O et O",{"$f":"AND(M2=0,N2=0)","v":true}]
["Défilement",{"$f":"\"   I      +\"","v":"   I      +"},null,{"$f":"CONCATENATE(HLOOKUP(M1,Feuil1!B4:AV9,5), HLOOKUP(M1,Feuil1!B4:AV9,6))","v":"Bienvenue dans ce parcours botanique à la découverte des feuilles.                                            Choisir le type d'arbres en haut à gauche puis cliquer sur le bouton \"Tirage\" ou dans ce cadre vert pour afficher une feuille.                                                                          Le jeu consiste à choisir son arbre dans un des deux menus déroulants ci-dessous."},null,null,null,{"$f":"REPT(\"n\",M16)","v":""},null,null,null,null,null,null,null,null,null,null,null,null,"   "]
[{"$f":"M1","v":45},null,null,{"$f":"IF(M16=0,\"Termes techniques, voir l'onglet 'Nomenclature' ci-dessous.\",\"\")","v":"Termes techniques, voir l'onglet 'Nomenclature' ci-dessous."}]
[null,"",null,{"$f":"IF(M1>44,\"êêê\",IF(M1>17,\"èèè\",\"ççç\"))","v":"êêê"},null,null,null,{"$f":"\"Ques : \"&M16","v":"Ques : 0"},{"$f":"\"Rép : \"&N18","v":"Rép : 0"},{"$f":"\"Justes : \"&M17","v":"Justes : 0"},null,null,null,"min","max"]
[null,null,{"$f":"IF($N$3=$M$1,\"P  \",\"O  \")","v":"O  "},null,null,{"$f":"IF($N$3=$M$1,\"P\",\"O\")","v":"O"},null,null,null,null,8,"Choix radio",1,{"$f":"VLOOKUP($M$8,$M$10:$O$15,2)","v":1},{"$f":"VLOOKUP($M$8,$M$10:$O$14,3)","v":40}]
[null,null,null,null,null,null,null,null,{"$f":"IF(N18>50,REPT(\"n\",N18-50),\"\")","v":""},null,9]
[null,null,null,null,null,null,null,null,null,null,10,"Tous les arbres",1,1,40]
[null,null,null,null,null,null,null,null,null,null,11,"Pins",2,1,8]
[null,null,null,null,null,null,null,null,null,null,12,"Fruitiers",3,9,17]
[null,null,null,null,null," ",null,null,null,null,13,"Pins & Fruitiers",4,1,17]
[null,null,null,null,null,null,null,null,null,null,14,"Indigènes",5,18,40]
[null,null,null,null,null,null,null,null,null,null,15,"Indigènes & Fruitiers",6,9,40]
[null,null,null,null,null,null,null,null,null,null,16,"nbtir",0]
[null,null,null,null,null,null,null,null,null,null,17,"nbjuste",0]
[null,null,null,null,null,null," ",null,null,null,18,"nb rep",0,{"$f":"IF(M18<0,0,M18)","v":0}]
[null,null,null,null,null,null,null,null,null,null,19]
[null,null,null,null,null,null,null,null,null,null,20,"Liste",false]
[null,null,null,null,null,null,null,null,null,null,21,"Choix",1,"arb ou tr",1]
[null,null,null,null,null,null,null,null,null,null,22,"défilement",0]
[null,null,null,null,null,null,null,null,null,null,23]
[]
["©Yvan Péguiron - Infodidac.ch 2020"]
[]
[]
[]
[null,{"$f":"IF(M20=TRUE,\"Liste des tirages de cette partie :\",\"\")","v":""}]
[0,1,{"$f":"IF(A30=0,\"\",HLOOKUP(A30,Feuil1!$B$4:$AS$5,2))","v":""}]
[0,2,{"$f":"IF(A31=0,\"\",HLOOKUP(A31,Feuil1!$B$4:$AS$5,2))","v":""}]
[0,3,{"$f":"IF(A32=0,\"\",HLOOKUP(A32,Feuil1!$B$4:$AS$5,2))","v":""}]
[0,4,{"$f":"IF(A33=0,\"\",HLOOKUP(A33,Feuil1!$B$4:$AS$5,2))","v":""}]
[0,5,{"$f":"IF(A34=0,\"\",HLOOKUP(A34,Feuil1!$B$4:$AS$5,2))","v":""}]
[0,6,{"$f":"IF(A35=0,\"\",HLOOKUP(A35,Feuil1!$B$4:$AS$5,2))","v":""}]
[0,7,{"$f":"IF(A36=0,\"\",HLOOKUP(A36,Feuil1!$B$4:$AS$5,2))","v":""}]
[0,8,{"$f":"IF(A37=0,\"\",HLOOKUP(A37,Feuil1!$B$4:$AS$5,2))","v":""}]
[0,9,{"$f":"IF(A38=0,\"\",HLOOKUP(A38,Feuil1!$B$4:$AS$5,2))","v":""}]
[0,10,{"$f":"IF(A39=0,\"\",HLOOKUP(A39,Feuil1!$B$4:$AS$5,2))","v":""}]
[0,11,{"$f":"IF(A40=0,\"\",HLOOKUP(A40,Feuil1!$B$4:$AS$5,2))","v":""}]
[0,12,{"$f":"IF(A41=0,\"\",HLOOKUP(A41,Feuil1!$B$4:$AS$5,2))","v":""}]
[0,13,{"$f":"IF(A42=0,\"\",HLOOKUP(A42,Feuil1!$B$4:$AS$5,2))","v":""}]
[0,14,{"$f":"IF(A43=0,\"\",HLOOKUP(A43,Feuil1!$B$4:$AS$5,2))","v":""}]
[0,15,{"$f":"IF(A44=0,\"\",HLOOKUP(A44,Feuil1!$B$4:$AS$5,2))","v":""}]
[0,16,{"$f":"IF(A45=0,\"\",HLOOKUP(A45,Feuil1!$B$4:$AS$5,2))","v":""}]
[0,17,{"$f":"IF(A46=0,\"\",HLOOKUP(A46,Feuil1!$B$4:$AS$5,2))","v":""}]
[0,18,{"$f":"IF(A47=0,\"\",HLOOKUP(A47,Feuil1!$B$4:$AS$5,2))","v":""}]
[0,19,{"$f":"IF(A48=0,\"\",HLOOKUP(A48,Feuil1!$B$4:$AS$5,2))","v":""}]
[0,20,{"$f":"IF(A49=0,\"\",HLOOKUP(A49,Feuil1!$B$4:$AS$5,2))","v":""}]
[0,21,{"$f":"IF(A50=0,\"\",HLOOKUP(A50,Feuil1!$B$4:$AS$5,2))","v":""}]
[0,22,{"$f":"IF(A51=0,\"\",HLOOKUP(A51,Feuil1!$B$4:$AS$5,2))","v":""}]
[0,23,{"$f":"IF(A52=0,\"\",HLOOKUP(A52,Feuil1!$B$4:$AS$5,2))","v":""}]
[0,24,{"$f":"IF(A53=0,\"\",HLOOKUP(A53,Feuil1!$B$4:$AS$5,2))","v":""}]
[0,25,{"$f":"IF(A54=0,\"\",HLOOKUP(A54,Feuil1!$B$4:$AS$5,2))","v":""}]
[0,26,{"$f":"IF(A55=0,\"\",HLOOKUP(A55,Feuil1!$B$4:$AS$5,2))","v":""}]
[0,27,{"$f":"IF(A56=0,\"\",HLOOKUP(A56,Feuil1!$B$4:$AS$5,2))","v":""}]
[0,28,{"$f":"IF(A57=0,\"\",HLOOKUP(A57,Feuil1!$B$4:$AS$5,2))","v":""}]
[0,29,{"$f":"IF(A58=0,\"\",HLOOKUP(A58,Feuil1!$B$4:$AS$5,2))","v":""}]
[0,30,{"$f":"IF(A59=0,\"\",HLOOKUP(A59,Feuil1!$B$4:$AS$5,2))","v":""}]
[0,31,{"$f":"IF(A60=0,\"\",HLOOKUP(A60,Feuil1!$B$4:$AS$5,2))","v":""}]
[0,32,{"$f":"IF(A61=0,\"\",HLOOKUP(A61,Feuil1!$B$4:$AS$5,2))","v":""}]
[0,33,{"$f":"IF(A62=0,\"\",HLOOKUP(A62,Feuil1!$B$4:$AS$5,2))","v":""}]
[0,34,{"$f":"IF(A63=0,\"\",HLOOKUP(A63,Feuil1!$B$4:$AS$5,2))","v":""}]
[0,35,{"$f":"IF(A64=0,\"\",HLOOKUP(A64,Feuil1!$B$4:$AS$5,2))","v":""}]
[0,36,{"$f":"IF(A65=0,\"\",HLOOKUP(A65,Feuil1!$B$4:$AS$5,2))","v":""}]
[0,37,{"$f":"IF(A66=0,\"\",HLOOKUP(A66,Feuil1!$B$4:$AS$5,2))","v":""}]
[0,38,{"$f":"IF(A67=0,\"\",HLOOKUP(A67,Feuil1!$B$4:$AS$5,2))","v":""}]
[0,39,{"$f":"IF(A68=0,\"\",HLOOKUP(A68,Feuil1!$B$4:$AS$5,2))","v":""}]
[0,40,{"$f":"IF(A69=0,\"\",HLOOKUP(A69,Feuil1!$B$4:$AS$5,2))","v":""}]
[0,41]
[0,42]
[0,43]
[0,44]
[0,45]
[0,46]
[0,47]
[0,48]
[0,49]
[0,50]
[0,51]
[0,52]
[0,53]
[0,54]
[0,55]
[0,56]
[0,57]
[0,58]
[0,59]
[0,60]
[0,61]
[0,62]
[0,63]
[0,64]
[0,65]
[0,66]
[0,67]
[0,68]
[0,69]
[0,70]
[0,71]
[0,72]
[0,73]
[0,74]
[0,75]
[0,76]
[0,77]
[0,78]
[0,79]
[0,80]
[null,81]
[null,82]
[null,83]

{"sheet":"Nomenclature","index":1,"n_rows":0,"n_cols":0,"rows_kept":0,"cut":false,"hidden":false,"merged":[]}

{"sheet":"Clé","index":2,"n_rows":0,"n_cols":0,"rows_kept":0,"cut":false,"hidden":false,"merged":[]}

{"sheet":"Feuil1","index":3,"n_rows":83,"n_cols":51,"rows_kept":83,"cut":false,"hidden":true,"merged":[]}
[0,1,2,3,4,5,6,7,8,9,10,11,45,13,14,15,16,17,18,19,20,21,22,23,24,25,26,27,28,29,30,31,32,33,34,35,36,37,38,39,40,41,42,43,44,45,46,47,48,49,50]
[null,1,1,1,1,1,1,1,1,2,2,2,0,0,2,2,2,2,3,3,3,3,3,3,3,3,3,3,3,3,3,3,3,3,3,3,3,3,3,3,3,null,null,null,null,null,null,null,null,null,3]
[null,null,null,null,null,null,null,null,null,null,null,null,null,null,null,null,null,null,null,null,null,null,null,null,null,null,null,null,null,null,null,null,null,null,null,null,null,null,null,null,null,null,null,null,null,"Bonjour","Fin du parcours                Bravo !"]
[null,1,2,3,4,5,6,7,8,9,10,11,12,13,14,15,16,17,18,19,20,21,22,23,24,25,26,27,28,29,30,31,32,33,34,35,36,37,38,39,40,41,42,43,44,45,46,null,null,null,19]
[null,"Arole","Douglas","Epicéa","If","Mélèze","Pin de montagne","Pin sylvestre","Sapin blanc","Abricotier","Cerisier d'automne","Châtaignier","Noyer","Pêcher","Poirier commun","Pommier domestique","Prunier domestique","Vigne","Alisier blanc","Aulne noir (glutineux)","Bouleau blanc (verruqueux)","Charme (Charmille)","Charme-houblon","Chêne pédonculé","Chêne rouve","Erable champêtre","Erable plane","Erable sycomore","Frêne commun","Hêtre","Marronnier commun","Merisier","Orme de montagne","Peuplier","Platane","Robinier (faux-acacia)","Saule","Sorbier des oiseleurs","Temble","Tilleul à grandes feuilles","Tilleul à petites feuilles","Chêne rouge",null,null,null,"   ","   ",null,null,null,"Aulne blanc"]
[null,"Pinus cembra","Pseudotsuga menziesii","Picea abies","Taxus baccata","Larix decidua","Pinus mugo arborea","Pinus sylvestris","Abies alba","Prunus armeniaca","Prunus serotina","Castanea sativa","Juglans regia","Prunus persica","Pyrus communis","Malus domestica","Prunus domestica","Vitis vinifera","Sorbus aria","Alnus glutinosa","Betula pendula","Carpinus betulus","Ostrya carpinafolia","Quercus robur","Quercus petraea","Acer campestre","Acer platanoides",null,"Fraxinus excelsior","Fagus sylvatica","Aesculus hippocastanum","Prunus avium","Ulmus glabra","Populus nigra","Platanus acerifolia","Robinia pseudoacacia","Salix alba","Sorbus aucuparia","Populus tremula","Tilia platyphyllos","Tilia cordata",null,null,null,null,"D E N D R O L O G I E","   ",null,null,null,"Alnus incana"]
["famille ","Pinaceae","Pinaceae","Pinaceae","Taxaceae","Pinaceae","Pinaceae","Pinaceae","Pinaceae","Rosaceae","Rosaceae","Fagaceae","Juglandaceae","Rosaceae","Rosaceae","Rosaceae","Rosaceae","Vitaceae","Rosaceae","Betulaceae","Betulaceae","Betulaceae","Betulaceae","Fagaceae","Fagaceae","Aceraceae","Aceraceae","Aceraceae","Oleaceae","Fagaceae","Sapindaceae","Rosaceae","Ulmaceae","Salicaceae"," Platanaceae","Fabaceae","Salicaceae","Rosaceae","Salicaceae","Tiliaceae","Malvaceae",null,null,null,null,"   ","   ",null,null,null,"Betulaceae"]
[null,"aiguilles de 4 à 8 centimètres1, fines, de section triangulaire, sont groupées par cinq.","Les feuilles sont des aiguilles, de 1,5 à 3 cm de long, minces, molles, souples, arquées, pointues, et rétrécies à la base, sans bandes blanches marquées au dos. Elles sont insérées sur un coussinet tout autour des rameaux des branches basses ou ","Les aiguilles, solitaires, sont disposées en brosse sur le rameau. Elles sont piquantes et leur section transversale est quadrangulaire. De couleur vert foncé sur toutes les faces, elles mesurent entre 15 et 25 mm de longueur."," Les feuilles sont des aiguilles un peu molles, plates de couleur vert foncé dessus et vert plus clair dessous. La plupart mesurent de 20 à 35 mm6. Les aiguilles sont insérées en spirale autour des pousses.","Les aiguilles, comme les feuilles des feuillus, roussissent en automne et chutent en hiver. Ces aiguilles sont peu coriaces, insérées en rosette sur les rameaux courts ou isolément sur les rameaux longs. ","2 à 7 cm sur 0,9-2,1 mm ; par 2 ; persistent 5-7 ans ; vert foncé, denses, rigides, un peu vrillées, avec rangées de stomates sur toutes les faces ; bord denticulé ; gaine persistante.","3-7 cm sur 1,5-2 mm, par 2 (parfois 3) ; peu piquantes, vert bleuté (le seul pin à 2 feuilles à feuillage glauque), vrillées, souples, mais robustes, bord denticulé, persistant 3-4 ans ; section aplatie semiorbiculaire ; ","Les feuilles sont des aiguilles persistantes, non piquantes, plates, droites, arrondies ou un peu échancrées à l’extrémité. Elles sont solitaires, de longueur variable sur un même rameau (15-30 mm). Elles sont fixées par une petite ampoule à bords limités.","En coeur, ressemblant à celle du Peuplier d'Italie ou du tilleul, avec un pétiole plus long.","Les feuilles sont de forme elliptique à lancéolée (12 cm de long pour 5 cm de large). Elles sont coriaces et munies d'une fine dentelure dirigée vers l’avant. Leur face supérieure est de couleur vert foncé luisante et est lisse, ","Ses grandes feuilles caduques vert luisantes dessus sont de forme oblongue lancéolée aiguë, aux bords en dents de scie et pétiole court. Elles sont disposées en spirale et peuvent mesurer jusqu'à 25 cm de long sur 4 à 8 cm de large)."," Leurs feuilles, caduques, alternes, assez grandes, sont composées, imparipennées (à 5-9 folioles ovales aiguës, la terminale la plus grande) et penninerves. Elles dégagent une odeur aromatique lorsqu’on les frotte.","Ses feuilles caduques acuminées sont vert franc et dégagent une légère odeur d'amande. Elles sont longues de 8 à 15 centimètres sur 2 ou 3 centimètres de large avec un court pétiole pourvu de part et d'autre de deux ou trois nectaires à la base du limbe.","Les feuilles portées par un long pétiole de 1,5-5 cm (environ les 2/3 de la longueur du limbe), ont un limbe ovale à elliptique, à bord finement denté en scie ou entier, de 2-10 cm de long","Les feuilles  sont simples, à limbe denté et à disposition alterne.","Les feuilles sont obovales ou oblongues, crénelées-dentées, glabre ou légèrement pubescente en dessous. Les stipules sont pubescentes.","Feuilles à nervures palmées, comportant pour la plupart cinq lobes principaux plus ou moins découpés, ont généralement une base cordiforme (forme de cœur).","Alternes, irrégulièrement dentées, tomenteuses blanches dessous, brillante dessus."," Feuilles ovales et tronquées au sommet (comme découpées d'un coup de ciseau). La face supérieure est vert foncé, luisante et gluante, tandis que la face intérieure est mate avec des touffes de poils à l'angle des nervures.","Ses feuilles sont triangulaires, pointues et doublement dentées. Il s'agit de feuilles simples, caduques et disposées de façon alternée.","Les feuilles alternes sont oblongues aiguës, doublement dentées, gauffrées, portées par des rameaux fins brun vert. Elles sont marcescentes : une partie d'entre elles restent sur l'arbre tout l'hiver.","Il s'apparente au Carpinus betulus  par la forme de ses feuilles. Elles sont ovoïdes à ovales, vertes, contour du limbe doublement denté, 5 - 10 cm.","Les feuilles lobées sont  presque sessiles, avec deux oreillettes à la base du limbe. Les feuilles de l'année sont pubérulentes et vert-jaune, devenant plus foncées avec l'âge. ","Les feuilles sont alternes, glabres, nettement pétiolées, lobées, en coin simple à la base. Les lobes, assez nombreux sont peu marqués, mais assez réguliers.","Feuilles opposées assez petites, un peu fermes, vertes sur les deux faces, pubescentes surtout en dessous, en coeur à la base, à 8 lobes arrondis, sinués-lobés, obtus ou subaigus, ","Les feuilles, opposées, caduques, sont palmées avec cinq nervures à lobes très pointus, à dents aiguës, séparés par des sinus arrondis. Ces feuilles, à long pétiole. ","Les feuilles, opposées, caduques, sont palmées avec cinq lobes pointus, à dents obtuses, séparées par des sinus aigus. Ces feuilles, à long pétiole (légèrement cordiforme à la base), ","Ses feuilles sont opposées, composées imparipennées portant 7 à 15 folioles dentées, couleur vert foncé.","Les feuilles alternes ondulées à bord lisse, elles sont entières et simples, de forme ovale à obovale, longues de 6 à 10 cm et larges de 4 à 7 cm, brillantes et légèrement coriaces. ","Les feuilles caduques sont opposées, grandes (30-50 cm), munies d'un long pétiole, palmées, à 5 ou 7 folioles dentelées.","Les feuilles sont elliptiques, alternes, dentées (précisément biserretées)"," Feuilles dentées et gaufrées. La longueur de ses feuilles est de 7 à 15 cm et 3 à 8 cm de large, elles ont un pétiole très court. Face inférieure plus claire et légèrement velue. Feuillage caduc.","Feuilles triangulaires à losangiques ou en coin à la base, denticulées, vertes et glabres sur les deux faces, visqueuses au débourrement ; pétiole court, aplati.","La feuille mesure de 12 à 25 cm et dispose de 3 à 5 lobes. Elle est coriace, de couleur vert foncé sur le dessus et vert plus pâle en dessous. ","Les feuilles non dentées caduques apparaissent tard au printemps. Elles sont imparipennées, avec un grand nombre (de 9 à 23) de folioles ovales2; les stipules des feuilles portées par les","Les feuilles, alternes, caduques, de 5 à 12 cm de long, sont entières, lancéolées, étroites, très finement dentées, effilées. La teinte argentée présente sur les deux faces de la feuille ","Ses feuilles sont composées de 17 ou 15 folioles lancéolées doublement dentées reliées au pétiole.","Les feuilles sont petites, glabres, alternes, arrondies, crénelées, cordées et acuminées, à couleur variable (rouge bronze, puis vert foncé, enfin jaune en automne), à pétiole allongé et ","Grandes feuilles en forme de cœur oblique (10-15 cm), feutrées sur leur face inférieure, à poils jaune-blanc à l'angle des nervures.","Ses feuilles sont alternes, longues de 3 à 8 cm, à contour circulaire, en forme de cœur, finement dentées et glabres. Elles sont vertes dessus et glauques dessous. Leur pétiole ",null,null,null,null,"Bienvenue dans ce parcours botanique à la découverte des feuilles.                                            Choisir le type d'arbres en haut à gauche puis cliquer sur le bouton \"Tirage\" ou dans ce cadre vert pour afficher une feuille.                          ","Bouton \"New\" pour un nouveau parcours         sinon au revoir et à bientôt !",null,null,null,"Feuille alterne avec un long pédoncule, ovale, aiguë, doublement dentée."]
[null,null,"sur deux rangées, en brosse, sur les rameaux fertiles. Les aiguilles sont de couleur vert foncé sur le dessus et parcourues par deux bandes vert clair de stomates sur le dessous.",null,null,"Elles se concentrent par touffes composées de 35 à 40 aiguilles le long des rameaux.",null,"nombreuses lignes de stomates sur les 2 faces ; 6-8 canaux résinifères marginaux ; gaine persistante de 9-12 mm.",null,null,"tandis que leur face inférieure est plus claire et est pubescente le long de la nervure principale.","  ",null,null,null,null,null,null,null,null,null,null,null,"Elles sont alors vert foncé à peine luisant sur le dessus, vert glauque et pâles dessous. ",null,"séparées par des sinus profonds, à angles aigus un peu émoussés au sommet.","Les feuilles sont glabres, vertes et luisantes. Elles prennent une très belle teinte jaune à l'automne.","Les feuilles sont glabres et vert sombre à la face supérieure, vert glauque portant des poils sur les nervures à la face inférieure.",null,"La base est cunéiforme, l'extrémité pointue. La marge des feuilles forme des petites dents arrondies aux extrémités de 5 à 8 paires de nervures. ",null,null,"La base du limbe près du pétiole est asymétrique.",null,"Les feuilles sont alternées sur la tige, les nervures partent de points différents.","rameaux non florifères sont transformés en aiguillons aigus, qui persistent plusieurs années après la chute des feuilles.","est due à de fines soies courtes, surtout présentes sur la face inférieure. Elles sont souvent tordues.",null,"aplati, très souple. Ces feuilles peuvent réaliser la photosynthèse avec leurs deux faces.",null,"est long et glabre. Elles présentent une touffe de poils roux à l'aisselle des nervures de la face inférieure (mais blancs en début de saison).",null,null,null,null,"                                                Le jeu consiste à choisir son arbre dans un des deux menus déroulants ci-dessous."]
[null,{"$f":"LEN(B8)","v":88},{"$f":"LEN(C8)","v":246},226,206,204,184,221,256,92,229,233,215,254,188,67,134,155,82,{"$f":"LEN(T8)","v":223},136,200,148,177,157,180,null,{"$f":"LEN(AB8)","v":183},104,182,120,74,196,161,143,187,187,98,187,132,177,0,{"$f":"LEN(AQ8)","v":0},0,0,null,null,null,0,0,{"$f":"LEN(AY8)","v":72}]
[]
[]
[null,{"$f":"B5","v":"Arole"},{"$f":"C5","v":"Douglas"},"Epicéa","If","Mélèze","Pin de montagne","Pin sylvestre","Sapin blanc","Abricotier","Cerisier d'automne","Châtaignier","Noyer","Pêcher","Poirier commun","Pommier domestique","Prunier domestique","Vigne","Alisier blanc",{"$f":"T5","v":"Aulne noir (glutineux)"},"Bouleau blanc (verruqueux)","Charme (Charmille)","Charme-houblon","Chêne pédonculé","Chêne rouve","Erable champêtre","Erable plane","Erable sycomore","Frêne commun","Hêtre","Marronnier commun","Merisier","Orme de montagne","Peuplier","Platane","Robinier (faux-acacia)","Saule","Sorbier des oiseleurs","Temble","Tilleul à grandes feuilles","Tilleul à petites feuilles","Chêne rouge",{"$f":"AQ5","v":0},0,0,"   ","   ",null,null,null,{"$f":"AY5","v":"Aulne blanc"}]
[]
[null,"https://afsq.org/cle-forestiere/liste-arbre.html"]
[]
[null,"https://www.lfi.ch/resultate/baumarten-fr.php"]
[]
[]
[1,{"$f":"TRANSPOSE(B5:AO5)","v":"Arole"}]
[2,"Douglas"]
[3,"Epicéa"]
[4,"If"]
[5,"Mélèze"]
[6,"Pin de montagne"]
[7,"Pin sylvestre"]
[8,"Sapin blanc"]
[9,"Abricotier"]
[10,"Cerisier d'automne"]
[11,"Châtaignier"]
[12,"Noyer"]
[13,"Pêcher"]
[14,"Poirier commun"]
[15,"Pommier domestique"]
[16,"Prunier domestique"]
[17,"Vigne"]
[18,"Alisier blanc"]
[19,"Aulne noir (glutineux)"]
[20,"Bouleau blanc (verruqueux)"]
[21,"Charme (Charmille)"]
[22,"Charme-houblon"]
[23,"Chêne pédonculé"]
[24,"Chêne rouve"]
[25,"Erable champêtre"]
[26,"Erable plane"]
[27,"Erable sycomore"]
[28,"Frêne commun"]
[29,"Hêtre"]
[30,"Marronnier commun"]
[31,"Merisier"]
[32,"Orme de montagne"]
[33,"Peuplier"]
[34,"Platane"]
[35,"Robinier (faux-acacia)"]
[36,"Saule"]
[37,"Sorbier des oiseleurs"]
[38,"Temble"]
[39,"Tilleul à grandes feuilles"]
[40,"Tilleul à petites feuilles"]
[41]
[42]
[43]
[44]
[45]
[46]
[47]
[48]
[49]
[50]
[51]
[52]
[53]
[54]
[55]
[56]
[57]
[58]
[59]
[60]
[61]
[62]
[63]
[64]